[Event "*** Titled Tuesday Blitz"]
[Site "Chess.com"]
[Date "2019.08.06"]
[Round "6"]
[White "BoboHead"]
[Black "warmoatmeal"]
[Result "1-0"]
[WhiteElo "2163"]
[BlackElo "2043"]
[TimeControl "180+2"]
[EndTime "14:20:26 PDT"]
[Termination "BoboHead won by resignation"]

1. e4 {[%clk 0:02:46.7]} 1... c5 {[%clk 0:02:59.6]} 2. Nf3 {[%clk 0:02:46.9]}
2... Nc6 {[%clk 0:03:00.3]} 3. Bb5 {[%clk 0:02:47.4]} 3... g6 {[%clk 0:02:59.1]}
4. Bxc6 {[%clk 0:02:45.9]} 4... dxc6 {[%clk 0:02:59.7]} 5. d3 {[%clk 0:02:46.8]}
5... Bg7 {[%clk 0:03:00.3]} 6. h3 {[%clk 0:02:48.4]} 6... Nf6 {[%clk 0:02:53.7]}
7. Nc3 {[%clk 0:02:48.3]} 7... Nd7 {[%clk 0:02:54.3]} 8. Be3 {[%clk 0:02:47.5]}
8... b6 {[%clk 0:02:54.4]} 9. Qd2 {[%clk 0:02:48.1]} 9... Nf8 {[%clk 0:02:54.9]}
10. Bh6 {[%clk 0:02:44.5]} 10... Bxh6 {[%clk 0:02:52.1]} 11. Qxh6 {[%clk
0:02:45.6]} 11... Ne6 {[%clk 0:02:54]} 12. Ne2 {[%clk 0:02:44.7]} 12... Nd4
{[%clk 0:02:51.6]} 13. Nexd4 {[%clk 0:02:40.7]} 13... cxd4 {[%clk 0:02:53.5]}
14. Qg7 {[%clk 0:02:40.9]} 14... Rf8 {[%clk 0:02:52.6]} 15. Ng5 {[%clk
0:02:31.2]} 15... Qd6 {[%clk 0:01:30.9]} 16. Nxh7 {[%clk 0:02:28.5]} 16... Qb4+
{[%clk 0:01:31.5]} 17. Ke2 {[%clk 0:02:17.6]} 17... e6 {[%clk 0:01:12.6]} 18.
Qxf8+ {[%clk 0:02:17.1]} 18... Qxf8 {[%clk 0:01:13.2]} 19. Nxf8 {[%clk 0:02:19]}
19... Kxf8 {[%clk 0:01:14.3]} 20. f4 {[%clk 0:02:18.3]} 20... a5 {[%clk
0:01:14.1]} 21. e5 {[%clk 0:02:18.8]} 21... c5 {[%clk 0:01:14.2]} 22. g4 {[%clk
0:02:20]} 22... Bb7 {[%clk 0:01:14.9]} 23. Rh2 {[%clk 0:02:21.3]} 23... Kg8
{[%clk 0:01:15.8]} 24. h4 {[%clk 0:02:22.6]} 24... Kg7 {[%clk 0:01:15.7]} 25. h5
{[%clk 0:02:24.3]} 25... Rh8 {[%clk 0:01:16]} 26. Rg1 {[%clk 0:02:22.9]} 26...
a4 {[%clk 0:01:08.4]} 27. a3 {[%clk 0:02:20.2]} 27... Bd5 {[%clk 0:01:08.1]} 28.
Rg3 {[%clk 0:02:18.2]} 28... b5 {[%clk 0:00:50.9]} 29. Rgh3 {[%clk 0:02:17.5]}
29... g5 {[%clk 0:00:45.2]} 30. fxg5 {[%clk 0:02:07.6]} 30... b4 {[%clk
0:00:45.4]} 31. Rf2 {[%clk 0:02:06.6]} 31... bxa3 {[%clk 0:00:37.8]} 32. bxa3
{[%clk 0:02:08.5]} 32... Rb8 {[%clk 0:00:37.7]} 33. h6+ {[%clk 0:02:09.3]} 33...
Kg8 {[%clk 0:00:33.3]} 34. h7+ {[%clk 0:02:08.1]} 34... Kg7 {[%clk 0:00:29.7]}
35. h8=Q+ {[%clk 0:02:02.6]} 35... Rxh8 {[%clk 0:00:29.1]} 36. Rxh8 {[%clk
0:02:04.5]} 1-0

[Event "*** Titled Tuesday Blitz"]
[Site "Chess.com"]
[Date "2019.08.06"]
[Round "6"]
[White "RegZryt"]
[Black "OparinGrigoriy"]
[Result "0-1"]
[WhiteElo "2601"]
[BlackElo "2981"]
[TimeControl "180+2"]
[EndTime "14:20:38 PDT"]
[Termination "OparinGrigoriy won by resignation"]

1. e4 {[%clk 0:03:01.9]} 1... c6 {[%clk 0:03:00.9]} 2. d4 {[%clk 0:03:02.6]}
2... d5 {[%clk 0:03:02.8]} 3. e5 {[%clk 0:03:04.3]} 3... c5 {[%clk 0:03:03.7]}
4. Nf3 {[%clk 0:03:04.8]} 4... cxd4 {[%clk 0:03:04.2]} 5. Nxd4 {[%clk
0:03:05.2]} 5... e6 {[%clk 0:03:05.8]} 6. c4 {[%clk 0:03:06.2]} 6... Nc6 {[%clk
0:03:06.8]} 7. Nc3 {[%clk 0:03:07]} 7... Bc5 {[%clk 0:03:07.6]} 8. Nb3 {[%clk
0:02:58.2]} 8... Bb4 {[%clk 0:03:05.8]} 9. cxd5 {[%clk 0:02:59.4]} 9... exd5
{[%clk 0:03:07]} 10. Bb5 {[%clk 0:02:59]} 10... Ne7 {[%clk 0:03:07.4]} 11. O-O
{[%clk 0:02:57.9]} 11... O-O {[%clk 0:03:08.9]} 12. Bg5 {[%clk 0:02:52.3]} 12...
Be6 {[%clk 0:03:03.4]} 13. Qe2 {[%clk 0:02:34.1]} 13... h6 {[%clk 0:02:59.7]}
14. Bh4 {[%clk 0:02:33.5]} 14... Qc7 {[%clk 0:02:56.9]} 15. Bxc6 {[%clk
0:02:21.4]} 15... Nxc6 {[%clk 0:02:55.8]} 16. Bg3 {[%clk 0:02:21.4]} 16... Rad8
{[%clk 0:02:52.2]} 17. Nb5 {[%clk 0:02:21.3]} 17... Qb6 {[%clk 0:02:51.9]} 18.
Rfd1 {[%clk 0:02:07.8]} 18... d4 {[%clk 0:02:42.6]} 19. Nd6 {[%clk 0:02:06.5]}
19... a5 {[%clk 0:02:31.7]} 20. Nd2 {[%clk 0:01:51.6]} 20... Nxe5 {[%clk
0:02:28.7]} 21. Bxe5 {[%clk 0:01:32]} 21... Bxd6 {[%clk 0:02:29]} 22. Nf3 {[%clk
0:01:27.9]} 22... Bxe5 {[%clk 0:02:28.7]} 23. Qxe5 {[%clk 0:01:29.8]} 23... d3
{[%clk 0:02:26.1]} 24. Rd2 {[%clk 0:01:31.2]} 24... Rd5 {[%clk 0:02:26.5]} 25.
Qc3 {[%clk 0:01:29.5]} 25... Rc8 {[%clk 0:02:25.5]} 26. Qa3 {[%clk 0:01:28.4]}
26... Rc2 {[%clk 0:02:26.1]} 27. Rad1 {[%clk 0:01:21.8]} 27... Bg4 {[%clk
0:02:12.8]} 28. Qe7 {[%clk 0:00:51.3]} 28... Bxf3 {[%clk 0:02:10.3]} 29. gxf3
{[%clk 0:00:53.2]} 29... Rxd2 {[%clk 0:01:59.1]} 30. Rxd2 {[%clk 0:00:52.9]}
30... Qc6 {[%clk 0:02:00.6]} 0-1

[Event "*** Titled Tuesday Blitz"]
[Site "Chess.com"]
[Date "2019.08.06"]
[Round "6"]
[White "Airquake"]
[Black "riconaipe"]
[Result "0-1"]
[WhiteElo "2606"]
[BlackElo "2461"]
[TimeControl "180+2"]
[EndTime "14:20:50 PDT"]
[Termination "riconaipe won on time"]

1. g3 {[%clk 0:03:01.9]} 1... d5 {[%clk 0:02:58.7]} 2. Bg2 {[%clk 0:03:03.8]}
2... c6 {[%clk 0:02:57.3]} 3. Nf3 {[%clk 0:03:04.9]} 3... Nf6 {[%clk 0:02:58.8]}
4. O-O {[%clk 0:03:05.7]} 4... Bg4 {[%clk 0:02:59.7]} 5. d3 {[%clk 0:03:02.1]}
5... Nbd7 {[%clk 0:02:59.7]} 6. b3 {[%clk 0:03:02.9]} 6... e6 {[%clk 0:03:00.1]}
7. Bb2 {[%clk 0:03:03.9]} 7... Be7 {[%clk 0:03:01.1]} 8. Nbd2 {[%clk 0:03:05.4]}
8... O-O {[%clk 0:03:01.9]} 9. e4 {[%clk 0:03:06.9]} 9... a5 {[%clk 0:03:00.9]}
10. a4 {[%clk 0:03:06.3]} 10... b5 {[%clk 0:02:56.9]} 11. h3 {[%clk 0:03:07.1]}
11... Bh5 {[%clk 0:02:57.4]} 12. e5 {[%clk 0:02:17.9]} 12... Ne8 {[%clk
0:02:57.7]} 13. g4 {[%clk 0:01:56.5]} 13... Bg6 {[%clk 0:02:57.1]} 14. Qe2
{[%clk 0:01:58]} 14... bxa4 {[%clk 0:02:56]} 15. Rxa4 {[%clk 0:01:58.1]} 15...
Nc5 {[%clk 0:02:55.8]} 16. Ra2 {[%clk 0:01:58.6]} 16... a4 {[%clk 0:02:56.6]}
17. Rfa1 {[%clk 0:01:59.2]} 17... Nc7 {[%clk 0:02:49.7]} 18. b4 {[%clk
0:01:59.1]} 18... N5a6 {[%clk 0:02:47.8]} 19. c3 {[%clk 0:01:55.5]} 19... c5
{[%clk 0:02:48.6]} 20. Rxa4 {[%clk 0:01:36.8]} 20... cxb4 {[%clk 0:02:49]} 21.
d4 {[%clk 0:01:36.4]} 21... Qc8 {[%clk 0:02:32.3]} 22. Bf1 {[%clk 0:01:24.1]}
22... Rb8 {[%clk 0:02:00.5]} 23. Rxa6 {[%clk 0:01:23.9]} 23... Nxa6 {[%clk
0:02:00.6]} 24. Qxa6 {[%clk 0:01:25]} 24... bxc3 {[%clk 0:01:59.7]} 25. Bc1
{[%clk 0:01:08.5]} 25... Qxa6 {[%clk 0:01:54.5]} 26. Rxa6 {[%clk 0:01:08.5]}
26... cxd2 {[%clk 0:01:55.9]} 27. Bxd2 {[%clk 0:01:10.1]} 27... Rb1 {[%clk
0:01:51.5]} 28. Ra3 {[%clk 0:01:10.8]} 28... Bxa3 {[%clk 0:01:51.4]} 0-1

[Event "*** Titled Tuesday Blitz"]
[Site "Chess.com"]
[Date "2019.08.06"]
[Round "6"]
[White "Gubajdullin"]
[Black "HomayoonTofighi"]
[Result "0-1"]
[WhiteElo "2608"]
[BlackElo "2850"]
[TimeControl "180+2"]
[EndTime "14:20:55 PDT"]
[Termination "HomayoonTofighi won by resignation"]

1. d4 {[%clk 0:02:34.7]} 1... Nf6 {[%clk 0:02:58.8]} 2. Bf4 {[%clk 0:02:35.6]}
2... e6 {[%clk 0:02:58.7]} 3. e3 {[%clk 0:02:36.1]} 3... c5 {[%clk 0:02:59.8]}
4. Nd2 {[%clk 0:02:32.4]} 4... cxd4 {[%clk 0:03:00.3]} 5. exd4 {[%clk
0:02:32.2]} 5... b6 {[%clk 0:03:02.1]} 6. c3 {[%clk 0:02:32.1]} 6... Bb7 {[%clk
0:03:03.2]} 7. Ngf3 {[%clk 0:02:31.5]} 7... d6 {[%clk 0:03:02.5]} 8. Bb5+ {[%clk
0:02:29.9]} 8... Nbd7 {[%clk 0:02:59.1]} 9. a4 {[%clk 0:02:30.5]} 9... a6 {[%clk
0:02:57]} 10. Bd3 {[%clk 0:02:31.1]} 10... Be7 {[%clk 0:02:57.3]} 11. O-O {[%clk
0:02:31.7]} 11... O-O {[%clk 0:02:58]} 12. Re1 {[%clk 0:02:32.7]} 12... Re8
{[%clk 0:02:57]} 13. Nc4 {[%clk 0:02:30.6]} 13... Nf8 {[%clk 0:02:54.4]} 14.
Nfd2 {[%clk 0:02:16.8]} 14... Nd5 {[%clk 0:02:47]} 15. Bg3 {[%clk 0:02:17.2]}
15... b5 {[%clk 0:02:45.6]} 16. Ne3 {[%clk 0:02:13.4]} 16... Nxe3 {[%clk
0:02:42.2]} 17. fxe3 {[%clk 0:02:07.7]} 17... Bc6 {[%clk 0:02:42.8]} 18. axb5
{[%clk 0:02:05.4]} 18... axb5 {[%clk 0:02:44.7]} 19. Rxa8 {[%clk 0:02:05.8]}
19... Qxa8 {[%clk 0:02:46.6]} 20. e4 {[%clk 0:02:06.9]} 20... Ng6 {[%clk
0:02:38.4]} 21. Rf1 {[%clk 0:02:05.8]} 21... e5 {[%clk 0:02:36.8]} 22. Qb3
{[%clk 0:01:58.8]} 22... Bf6 {[%clk 0:02:35.1]} 23. Bxb5 {[%clk 0:01:37.4]}
23... exd4 {[%clk 0:02:27.4]} 24. Bc4 {[%clk 0:01:36.4]} 24... Re7 {[%clk
0:02:23.6]} 25. Bxd6 {[%clk 0:01:34.3]} 25... Rd7 {[%clk 0:02:16.7]} 26. e5
{[%clk 0:00:19]} 26... dxc3 {[%clk 0:02:04.4]} 27. bxc3 {[%clk 0:00:11.9]} 27...
Nxe5 {[%clk 0:02:03.6]} 28. Bxe5 {[%clk 0:00:11.1]} 28... Rxd2 {[%clk 0:02:01]}
29. Bxf7+ {[%clk 0:00:10]} 29... Kh8 {[%clk 0:02:00.7]} 30. Rxf6 {[%clk
0:00:10.5]} 30... Rxg2+ {[%clk 0:02:01.5]} 31. Kf1 {[%clk 0:00:11.3]} 31... Qa1+
{[%clk 0:02:01.2]} 0-1

[Event "*** Titled Tuesday Blitz"]
[Site "Chess.com"]
[Date "2019.08.06"]
[Round "6"]
[White "aquaticpineapples"]
[Black "SergeiAza"]
[Result "0-1"]
[WhiteElo "2154"]
[BlackElo "2786"]
[TimeControl "180+2"]
[EndTime "14:21:02 PDT"]
[Termination "SergeiAza won by resignation"]

1. d4 {[%clk 0:03:01.9]} 1... Nf6 {[%clk 0:03:00.2]} 2. Nf3 {[%clk 0:03:02.2]}
2... e6 {[%clk 0:03:00.1]} 3. Nbd2 {[%clk 0:03:01.7]} 3... d5 {[%clk 0:03:00.7]}
4. e3 {[%clk 0:03:01.7]} 4... Be7 {[%clk 0:02:59.3]} 5. Bd3 {[%clk 0:03:02.4]}
5... O-O {[%clk 0:03:00.8]} 6. b3 {[%clk 0:03:03.3]} 6... c5 {[%clk 0:03:02]} 7.
Bb2 {[%clk 0:03:04.5]} 7... Nc6 {[%clk 0:02:59]} 8. a3 {[%clk 0:03:05]} 8... b6
{[%clk 0:02:56.2]} 9. Ne5 {[%clk 0:03:03.3]} 9... Bb7 {[%clk 0:02:54.7]} 10. O-O
{[%clk 0:03:02.9]} 10... Nxe5 {[%clk 0:02:50.3]} 11. dxe5 {[%clk 0:03:03.4]}
11... Ne4 {[%clk 0:02:51.8]} 12. Nxe4 {[%clk 0:02:40]} 12... dxe4 {[%clk
0:02:52.4]} 13. Bc4 {[%clk 0:02:40.6]} 13... Qc7 {[%clk 0:02:46.9]} 14. Qe2
{[%clk 0:02:34.9]} 14... Rad8 {[%clk 0:02:32.5]} 15. Rfd1 {[%clk 0:02:10.1]}
15... g6 {[%clk 0:02:32]} 16. a4 {[%clk 0:02:05.6]} 16... h5 {[%clk 0:02:24.3]}
17. a5 {[%clk 0:02:02.3]} 17... Rxd1+ {[%clk 0:02:15.9]} 18. Rxd1 {[%clk
0:01:57.7]} 18... Rd8 {[%clk 0:02:16.7]} 19. axb6 {[%clk 0:01:54.8]} 19... axb6
{[%clk 0:02:17.3]} 20. Rd2 {[%clk 0:01:39.7]} 20... Bc6 {[%clk 0:02:10.1]} 21.
Qd1 {[%clk 0:01:09.6]} 21... Ra8 {[%clk 0:02:06.6]} 22. Qb1 {[%clk 0:00:54.5]}
22... Bf8 {[%clk 0:02:05]} 23. Qd1 {[%clk 0:00:32.3]} 23... Bg7 {[%clk
0:01:34.1]} 24. Rd6 {[%clk 0:00:28.1]} 24... Ra2 {[%clk 0:01:35]} 25. Qb1 {[%clk
0:00:20.3]} 25... Rxb2 {[%clk 0:01:30.8]} 26. Qxb2 {[%clk 0:00:10.9]} 26... Qxd6
{[%clk 0:01:31.8]} 27. exd6 {[%clk 0:00:09.2]} 27... Bxb2 {[%clk 0:01:31.7]} 28.
Ba6 {[%clk 0:00:06.4]} 28... Be5 {[%clk 0:01:29.9]} 29. Bb7 {[%clk 0:00:03.6]}
29... Bxb7 {[%clk 0:01:29.4]} 30. d7 {[%clk 0:00:04.9]} 30... Bc7 {[%clk
0:01:30.4]} 0-1

[Event "*** Titled Tuesday Blitz"]
[Site "Chess.com"]
[Date "2019.08.06"]
[Round "6"]
[White "olksuna"]
[Black "m3alam"]
[Result "0-1"]
[WhiteElo "2540"]
[BlackElo "2337"]
[TimeControl "180+2"]
[EndTime "14:21:10 PDT"]
[Termination "m3alam won on time"]

1. c4 {[%clk 0:03:01.9]} 1... c6 {[%clk 0:03:01.6]} 2. Nf3 {[%clk 0:03:01.4]}
2... d5 {[%clk 0:03:03.5]} 3. e3 {[%clk 0:03:03.1]} 3... Nf6 {[%clk 0:03:04.1]}
4. Nc3 {[%clk 0:03:04.5]} 4... g6 {[%clk 0:03:05.3]} 5. b3 {[%clk 0:02:58]} 5...
Bg7 {[%clk 0:03:05.8]} 6. Bb2 {[%clk 0:02:59.4]} 6... O-O {[%clk 0:03:07.1]} 7.
d4 {[%clk 0:02:48.3]} 7... Bg4 {[%clk 0:02:59.2]} 8. Be2 {[%clk 0:02:44.5]} 8...
Ne4 {[%clk 0:02:18.4]} 9. O-O {[%clk 0:02:32.2]} 9... Nd7 {[%clk 0:02:09.2]} 10.
Nxe4 {[%clk 0:01:59]} 10... dxe4 {[%clk 0:02:11.1]} 11. Ng5 {[%clk 0:01:59.8]}
11... Bf5 {[%clk 0:02:06.9]} 12. g4 {[%clk 0:01:57]} 12... e5 {[%clk 0:02:05.8]}
13. gxf5 {[%clk 0:01:14.8]} 13... Qxg5+ {[%clk 0:02:01.9]} 14. Kh1 {[%clk
0:01:16.2]} 14... exd4 {[%clk 0:01:56]} 15. Bxd4 {[%clk 0:00:57.8]} 15... Ne5
{[%clk 0:01:47.1]} 16. fxg6 {[%clk 0:00:48.5]} 16... fxg6 {[%clk 0:01:44.2]} 17.
Qc2 {[%clk 0:00:49.2]} 17... Qh4 {[%clk 0:01:40]} 18. f4 {[%clk 0:00:17.2]}
18... exf3 {[%clk 0:01:36.3]} 19. Bd3 {[%clk 0:00:18.4]} 19... Ng4 {[%clk
0:01:26.3]} 20. Bxg7 {[%clk 0:00:11.2]} 20... Kxg7 {[%clk 0:01:26.3]} 21. Qb2+
{[%clk 0:00:07]} 21... Kh6 {[%clk 0:01:22.8]} 22. e4 {[%clk 0:00:02.9]} 22... f2
{[%clk 0:01:14.2]} 23. Qd2+ {[%clk 0:00:02.9]} 23... g5 {[%clk 0:01:10.2]} 0-1

[Event "*** Titled Tuesday Blitz"]
[Site "Chess.com"]
[Date "2019.08.06"]
[Round "6"]
[White "tigra"]
[Black "GHANDEEVAM2003"]
[Result "1-0"]
[WhiteElo "2787"]
[BlackElo "2935"]
[TimeControl "180+2"]
[EndTime "14:21:13 PDT"]
[Termination "tigra won by resignation"]

1. e4 {[%clk 0:03:01.9]} 1... c5 {[%clk 0:02:59.6]} 2. b4 {[%clk 0:02:58.6]}
2... cxb4 {[%clk 0:02:58.5]} 3. a3 {[%clk 0:03:00]} 3... d5 {[%clk 0:02:59.3]}
4. exd5 {[%clk 0:03:00.3]} 4... Qxd5 {[%clk 0:03:01.2]} 5. Nf3 {[%clk
0:03:01.5]} 5... e5 {[%clk 0:02:58.5]} 6. c4 {[%clk 0:03:00.7]} 6... bxc3 {[%clk
0:02:42.9]} 7. Nxc3 {[%clk 0:03:00.7]} 7... Qe6 {[%clk 0:02:44.4]} 8. Bb5+
{[%clk 0:02:49.1]} 8... Bd7 {[%clk 0:02:43.5]} 9. O-O {[%clk 0:02:48.7]} 9...
Be7 {[%clk 0:02:35.6]} 10. Re1 {[%clk 0:02:18.4]} 10... Nc6 {[%clk 0:02:22.3]}
11. d4 {[%clk 0:02:10]} 11... Qd6 {[%clk 0:02:13.1]} 12. Bxc6 {[%clk 0:01:54.6]}
12... Bxc6 {[%clk 0:02:09.2]} 13. Nxe5 {[%clk 0:01:55.3]} 13... Nf6 {[%clk
0:02:02.5]} 14. Bf4 {[%clk 0:01:45.6]} 14... Nd5 {[%clk 0:02:00.3]} 15. Nxc6
{[%clk 0:00:34.7]} 15... Qxc6 {[%clk 0:01:54.2]} 16. Nxd5 {[%clk 0:00:32.9]}
16... Qxd5 {[%clk 0:01:56.1]} 17. Qe2 {[%clk 0:00:28.3]} 17... Qe6 {[%clk
0:01:52.5]} 18. Qb5+ {[%clk 0:00:26.2]} 18... Qd7 {[%clk 0:01:53]} 19. Qb4
{[%clk 0:00:08.5]} 19... Kd8 {[%clk 0:01:45.6]} 20. Rxe7 {[%clk 0:00:06.1]}
20... Qxe7 {[%clk 0:01:47.5]} 21. Qa5+ {[%clk 0:00:07.4]} 21... Kd7 {[%clk
0:01:42.3]} 22. Re1 {[%clk 0:00:07.9]} 22... Rhc8 {[%clk 0:01:34]} 23. Rxe7+
{[%clk 0:00:07.4]} 23... Kxe7 {[%clk 0:01:35.9]} 24. h4 {[%clk 0:00:08.5]} 24...
Rc6 {[%clk 0:01:35.2]} 25. Qb4+ {[%clk 0:00:08.9]} 25... Kf6 {[%clk 0:01:34.6]}
26. Qxb7 {[%clk 0:00:10.3]} 26... Rac8 {[%clk 0:01:36.2]} 27. Kh2 {[%clk
0:00:11.1]} 27... h6 {[%clk 0:01:36.2]} 28. Be5+ {[%clk 0:00:11.8]} 28... Kg6
{[%clk 0:01:37.1]} 29. d5 {[%clk 0:00:13]} 29... Rc5 {[%clk 0:01:37.8]} 30. Qb1+
{[%clk 0:00:11.9]} 30... f5 {[%clk 0:01:37.2]} 31. Qb7 {[%clk 0:00:13.3]} 31...
Rg8 {[%clk 0:01:36.8]} 32. Qd7 {[%clk 0:00:14.1]} 32... Kh7 {[%clk 0:01:36.4]}
33. Qxf5+ {[%clk 0:00:14.7]} 33... Kh8 {[%clk 0:01:37.8]} 34. Qg6 {[%clk
0:00:15.3]} 34... Rc6 {[%clk 0:01:39.2]} 35. dxc6 {[%clk 0:00:15.9]} 1-0

[Event "*** Titled Tuesday Blitz"]
[Site "Chess.com"]
[Date "2019.08.06"]
[Round "6"]
[White "Genghis_K"]
[Black "KazakhFighter04"]
[Result "1-0"]
[WhiteElo "2887"]
[BlackElo "2744"]
[TimeControl "180+2"]
[EndTime "14:21:15 PDT"]
[Termination "Genghis_K won by resignation"]

1. e4 {[%clk 0:02:57.8]} 1... c5 {[%clk 0:03:00.6]} 2. Nf3 {[%clk 0:02:58.7]}
2... Nc6 {[%clk 0:03:02.2]} 3. Bb5 {[%clk 0:02:58.6]} 3... g6 {[%clk 0:03:03.5]}
4. Bxc6 {[%clk 0:02:57.3]} 4... dxc6 {[%clk 0:03:05.4]} 5. d3 {[%clk 0:02:57.6]}
5... Bg7 {[%clk 0:03:07]} 6. h3 {[%clk 0:02:58.4]} 6... Nf6 {[%clk 0:03:08.2]}
7. Nc3 {[%clk 0:02:58.8]} 7... Nd7 {[%clk 0:03:09.8]} 8. Be3 {[%clk 0:02:56.6]}
8... e5 {[%clk 0:03:11.2]} 9. Qd2 {[%clk 0:02:57.8]} 9... h6 {[%clk 0:03:11.7]}
10. O-O {[%clk 0:02:58.1]} 10... b6 {[%clk 0:03:13.2]} 11. Nh2 {[%clk
0:02:59.3]} 11... Nf8 {[%clk 0:03:12.8]} 12. f4 {[%clk 0:03:00]} 12... exf4
{[%clk 0:03:14]} 13. Bxf4 {[%clk 0:03:01.9]} 13... Ne6 {[%clk 0:03:12.2]} 14.
Bg3 {[%clk 0:03:02.2]} 14... Nd4 {[%clk 0:02:28.6]} 15. e5 {[%clk 0:02:42.8]}
15... Bf5 {[%clk 0:02:20.7]} 16. Rae1 {[%clk 0:02:42.8]} 16... O-O {[%clk
0:02:18.8]} 17. Ne4 {[%clk 0:02:42.1]} 17... Bxe4 {[%clk 0:02:18.2]} 18. Rxe4
{[%clk 0:02:42.8]} 18... Qd5 {[%clk 0:02:17.8]} 19. Ng4 {[%clk 0:02:35.5]} 19...
Nf5 {[%clk 0:02:13.1]} 20. Rxf5 {[%clk 0:02:00.7]} 20... gxf5 {[%clk 0:02:14.7]}
21. Nf6+ {[%clk 0:02:02.2]} 21... Bxf6 {[%clk 0:02:11.2]} 22. exf6 {[%clk
0:02:04.1]} 22... Kh7 {[%clk 0:02:11.6]} 23. Rh4 {[%clk 0:02:03.8]} 23... f4
{[%clk 0:02:13.1]} 24. Bxf4 {[%clk 0:01:57]} 24... h5 {[%clk 0:01:56.3]} 25. c4
{[%clk 0:01:49]} 25... Qd4+ {[%clk 0:01:24.8]} 26. Kh2 {[%clk 0:01:38.8]} 26...
Rh8 {[%clk 0:01:18.5]} 27. Rxh5+ {[%clk 0:01:34.4]} 27... Kg8 {[%clk 0:01:08.9]}
28. Rg5+ {[%clk 0:01:09.6]} 28... Kf8 {[%clk 0:01:08.8]} 29. Be5 {[%clk
0:00:57.3]} 29... Qd7 {[%clk 0:01:09.4]} 30. Qe3 {[%clk 0:00:50.5]} 30... Re8
{[%clk 0:01:04.6]} 31. Rg8+ {[%clk 0:00:49.7]} 31... Rxg8 {[%clk 0:00:48.6]} 32.
Qh6+ {[%clk 0:00:50.1]} 1-0

[Event "*** Titled Tuesday Blitz"]
[Site "Chess.com"]
[Date "2019.08.06"]
[Round "6"]
[White "Chigorinetz"]
[Black "valeriocarnicelli"]
[Result "0-1"]
[WhiteElo "2608"]
[BlackElo "2433"]
[TimeControl "180+2"]
[EndTime "14:21:25 PDT"]
[Termination "valeriocarnicelli won by resignation"]

1. e4 {[%clk 0:03:01.9]} 1... e5 {[%clk 0:02:58.7]} 2. Bc4 {[%clk 0:03:00.5]}
2... Nc6 {[%clk 0:02:58.9]} 3. Nc3 {[%clk 0:02:58.6]} 3... Nf6 {[%clk 0:02:59]}
4. d3 {[%clk 0:02:59.4]} 4... Bc5 {[%clk 0:02:59.4]} 5. f4 {[%clk 0:02:59]} 5...
d6 {[%clk 0:03:00.2]} 6. Nf3 {[%clk 0:02:59.4]} 6... Bg4 {[%clk 0:02:58.5]} 7.
Na4 {[%clk 0:02:58.5]} 7... O-O {[%clk 0:02:59.1]} 8. Nxc5 {[%clk 0:02:56.5]}
8... dxc5 {[%clk 0:03:01]} 9. O-O {[%clk 0:02:54.4]} 9... Qd6 {[%clk 0:03:00.3]}
10. h3 {[%clk 0:02:36.8]} 10... Bxf3 {[%clk 0:02:59.4]} 11. Qxf3 {[%clk
0:02:36.7]} 11... b5 {[%clk 0:03:00.7]} 12. Bb3 {[%clk 0:02:22.5]} 12... c4
{[%clk 0:02:26]} 13. dxc4 {[%clk 0:02:17.9]} 13... bxc4 {[%clk 0:02:27.2]} 14.
Ba4 {[%clk 0:02:09.4]} 14... Nd4 {[%clk 0:02:28.2]} 15. Qd1 {[%clk 0:01:56.1]}
15... Nxe4 {[%clk 0:02:20.5]} 16. Be3 {[%clk 0:01:52.9]} 16... Ng3 {[%clk
0:02:16.1]} 17. fxe5 {[%clk 0:01:31]} 17... Nde2+ {[%clk 0:02:03.8]} 18. Kf2
{[%clk 0:00:54.8]} 18... Qxe5 {[%clk 0:02:04.4]} 19. Qd2 {[%clk 0:00:37]} 19...
Ne4+ {[%clk 0:02:01.5]} 20. Kxe2 {[%clk 0:00:36.6]} 20... Nxd2 {[%clk
0:02:02.7]} 21. Kxd2 {[%clk 0:00:38.5]} 21... Rad8+ {[%clk 0:02:03.3]} 22. Ke2
{[%clk 0:00:38.2]} 22... Rfe8 {[%clk 0:02:04.1]} 23. Bxe8 {[%clk 0:00:38.2]}
23... Rxe8 {[%clk 0:02:05.3]} 24. Rf3 {[%clk 0:00:39.9]} 24... Qxb2 {[%clk
0:02:03.9]} 25. Rd1 {[%clk 0:00:41.8]} 25... c3 {[%clk 0:01:58.3]} 26. Rd7
{[%clk 0:00:39.7]} 26... Qxc2+ {[%clk 0:01:58.2]} 27. Kf1 {[%clk 0:00:35.3]}
27... Qxa2 {[%clk 0:01:56.7]} 28. Rxc7 {[%clk 0:00:29.2]} 28... c2 {[%clk
0:01:57.3]} 29. Kg1 {[%clk 0:00:23.8]} 29... h6 {[%clk 0:01:57.3]} 30. Kh2
{[%clk 0:00:23.5]} 30... a5 {[%clk 0:01:53.2]} 31. Bd4 {[%clk 0:00:16.3]} 31...
Qd5 {[%clk 0:01:48.2]} 32. Bf2 {[%clk 0:00:11.6]} 32... Qd6+ {[%clk 0:01:48.8]}
33. Bg3 {[%clk 0:00:12.3]} 33... Qxc7 {[%clk 0:01:49.8]} 0-1

[Event "*** Titled Tuesday Blitz"]
[Site "Chess.com"]
[Date "2019.08.06"]
[Round "6"]
[White "Nakachuk"]
[Black "KacperPolOK"]
[Result "1-0"]
[WhiteElo "2659"]
[BlackElo "2425"]
[TimeControl "180+2"]
[EndTime "14:21:37 PDT"]
[Termination "Nakachuk won by resignation"]

1. d4 {[%clk 0:03:01.9]} 1... e6 {[%clk 0:03:00.2]} 2. Bf4 {[%clk 0:02:57.5]}
2... f5 {[%clk 0:02:55.4]} 3. Nf3 {[%clk 0:02:56.7]} 3... Nf6 {[%clk 0:02:56.6]}
4. e3 {[%clk 0:02:54.5]} 4... Be7 {[%clk 0:02:58]} 5. h3 {[%clk 0:02:51.7]} 5...
O-O {[%clk 0:02:58.8]} 6. Bd3 {[%clk 0:02:51.1]} 6... b6 {[%clk 0:02:59.6]} 7.
Nbd2 {[%clk 0:02:49.8]} 7... Bb7 {[%clk 0:03:00.7]} 8. c3 {[%clk 0:02:50.9]}
8... h6 {[%clk 0:03:01.3]} 9. Qc2 {[%clk 0:02:51.1]} 9... d6 {[%clk 0:02:49]}
10. O-O-O {[%clk 0:02:50.2]} 10... Nbd7 {[%clk 0:02:42.2]} 11. Rdg1 {[%clk
0:02:46]} 11... Nh5 {[%clk 0:02:13.2]} 12. Bxh6 {[%clk 0:02:10]} 12... gxh6
{[%clk 0:02:10.4]} 13. g4 {[%clk 0:02:09.3]} 13... fxg4 {[%clk 0:01:45.5]} 14.
hxg4 {[%clk 0:02:09.8]} 14... Bxf3 {[%clk 0:01:43.8]} 15. gxh5+ {[%clk
0:02:04.3]} 15... Bg5 {[%clk 0:01:44.6]} 16. Nxf3 {[%clk 0:02:00.2]} 16... Rxf3
{[%clk 0:01:44.9]} 17. Be4 {[%clk 0:02:01.4]} 17... Qf8 {[%clk 0:01:46.2]} 18.
Bxa8 {[%clk 0:01:10.4]} 18... Qxa8 {[%clk 0:01:46.6]} 19. Qg6+ {[%clk
0:01:11.8]} 19... Kh8 {[%clk 0:01:31]} 20. Rxg5 {[%clk 0:01:10.4]} 20... hxg5
{[%clk 0:01:28.6]} 21. Qh6+ {[%clk 0:01:11.7]} 21... Kg8 {[%clk 0:01:29.5]} 22.
Qxg5+ {[%clk 0:01:12.9]} 22... Kf8 {[%clk 0:01:28.6]} 23. Rg1 {[%clk 0:01:13.2]}
23... Ke8 {[%clk 0:00:38.5]} 24. h6 {[%clk 0:01:07.3]} 24... Qe4 {[%clk
0:00:37]} 25. Qh5+ {[%clk 0:00:52.5]} 25... Kf8 {[%clk 0:00:36.7]} 26. h7 {[%clk
0:00:49.6]} 26... Ke7 {[%clk 0:00:15.6]} 27. h8=Q {[%clk 0:00:43.3]} 27... d5
{[%clk 0:00:16.6]} 28. Q8h7+ {[%clk 0:00:39.5]} 1-0